fUST/lending_fUST_20250625
["ID","MTS","AMOUNT","RATE_DAILY","PERIOD"]
[367405136,1750786239180,-460.0,0.0001724,2]
[367405137,1750786239190,-500.0,0.0001724,2]
[367405138,1750786239199,-460.0,0.0001724,2]
[367405139,1750786239209,-576.48692033,0.0001724,2]
[367405140,1750786239218,-360.42738565,0.0001724,2]
[367405141,1750786239227,-460.0,0.0001724,2]
[367405142,1750786239237,-460.0,0.0001724,2]
[367405143,1750786239246,-460.0,0.0001724,2]
[367405145,1750786239255,-451.84410237,0.0001724,2]
[367405146,1750786239264,-460.0,0.0001724,2]
[367405147,1750786239273,-510.38540525,0.0001724,2]
[367405148,1750786239282,-460.0,0.0001724,2]
[367405149,1750786239291,-460.0,0.0001724,2]
[367405150,1750786239300,-460.0,0.0001724,2]
[367405151,1750786239309,-460.0,0.0001724,2]
[367405152,1750786239319,-460.0,0.0001724,2]
[367405153,1750786239328,-613.36,0.0001724,2]
[367405154,1750786239337,-460.0,0.0001724,2]
[367405155,1750786239347,-460.0,0.0001724,2]
[367405156,1750786239359,-281.25366821,0.0001724,2]
[367405157,1750786239368,-460.0,0.0001724,2]
[367405158,1750786239376,-289.88753324,0.0001724,2]
[367405159,1750786239387,-460.0,0.0001724,2]
[367405160,1750786239396,-460.0,0.0001724,2]
[367405161,1750786239406,-460.0,0.0001724,2]
[367405162,1750786239415,-460.0,0.0001724,2]
[367405163,1750786239426,-460.0,0.0001724,2]
[367405164,1750786239435,-460.0,0.0001724,2]
[367405165,1750786239444,-460.0,0.0001724,2]
[367405166,1750786239454,-460.0,0.0001724,2]
[367405168,1750786239463,-500.0,0.0001724,2]
[367405170,1750786239472,-460.0,0.0001724,2]
[367405172,1750786239480,-3176.47,0.0001724,2]
[367405174,1750786239490,-460.0,0.0001724,2]
[367405176,1750786239499,-460.0,0.0001724,2]
[367405178,1750786239508,-460.0,0.0001724,2]
[367405179,1750786239517,-592.5,0.0001724,2]
[367405180,1750786239527,-539.52,0.0001724,2]
[367405181,1750786239536,-460.0,0.0001724,2]
[367405182,1750786239545,-460.0,0.0001724,2]
[367405183,1750786239556,-460.0,0.0001724,2]
[367405184,1750786239565,-713.14,0.0001724,2]
[367405186,1750786239575,-222.94964692,0.0001724,2]
[367405188,1750786239585,-491.53,0.0001724,2]
[367405190,1750786239594,-509.57061595,0.00017241,2]
[367405192,1750786239603,-460.0,0.00017241,2]
[367405194,1750786239612,-460.0,0.00017241,2]
[367405196,1750786239621,-460.0,0.00017241,2]
[367405198,1750786239630,-460.0,0.00017241,2]
[367405200,1750786239640,-380.97274341,0.00017241,2]
[367405202,1750786239649,-460.0,0.00017241,2]
[367405204,1750786239658,-441.29228052,0.00017241,2]
[367405206,1750786239667,-460.0,0.00017241,2]
[367405208,1750786239677,-460.0,0.00017241,2]
[367405210,1750786239686,-158.88728939,0.00017241,2]
[367405212,1750786239695,-460.0,0.00017241,2]
[367405214,1750786239703,-460.0,0.00017241,2]
[367405216,1750786239712,-460.0,0.00017241,2]
[367405218,1750786239722,-460.0,0.00017241,2]
[367405220,1750786239732,-460.0,0.00017241,2]
[367405222,1750786239741,-500.0,0.00017241,2]
[367405224,1750786239751,-500.0,0.00017241,2]
[367405226,1750786239760,-1449.9,0.00017241,2]
[367405228,1750786239769,-560.57,0.00017241,2]
[367405230,1750786239778,-460.0,0.00017241,2]
[367405232,1750786239788,-460.0,0.00017241,2]
[367405234,1750786239796,-460.0,0.00017241,2]
[367405236,1750786239806,-460.0,0.00017241,2]
[367405238,1750786239815,-1337.73,0.00017241,2]
[367405240,1750786239825,-744.52,0.00017241,2]
[367405242,1750786239834,-460.0,0.00017241,2]
[367405244,1750786239844,-460.0,0.00017241,2]
[367405246,1750786239853,-500.0,0.00017242,2]
[367405248,1750786239865,-460.0,0.00017242,2]
[367405250,1750786239875,-431.17049579,0.00017242,2]
[367405252,1750786239884,-460.0,0.00017242,2]
[367405254,1750786239893,-462.29387247,0.00017242,2]
[367405256,1750786239902,-460.0,0.00017242,2]
[367405258,1750786239912,-460.0,0.00017242,2]
[367405260,1750786239921,-460.0,0.00017242,2]
[367405262,1750786239930,-466.97098819,0.00017242,2]
[367405264,1750786239939,-426.62652211,0.00017242,2]
[367405266,1750786239949,-460.0,0.00017242,2]
[367405268,1750786239958,-460.0,0.00017242,2]
[367405270,1750786239967,-460.0,0.00017242,2]
[367405272,1750786239976,-460.0,0.00017242,2]
[367405274,1750786239985,-460.0,0.00017242,2]
[367405276,1750786239994,-460.0,0.00017242,2]
[367405278,1750786240004,-420.0,0.00017242,2]
[367405280,1750786240013,-460.0,0.00017242,2]
[367405282,1750786240023,-460.0,0.00017242,2]
[367405284,1750786240032,-436.12665083,0.00017242,2]
[367405286,1750786240041,-460.0,0.00017242,2]
[367405288,1750786240050,-460.0,0.00017242,2]
[367405289,1750786240059,-460.0,0.00017242,2]
[367405292,1750786240068,-460.0,0.00017242,2]
[367405294,1750786240078,-460.0,0.00017242,2]
[367405295,1750786240087,-460.0,0.00017242,2]
[367405297,1750786240097,-460.0,0.00017242,2]
[367405300,1750786240106,-460.0,0.00017242,2]
[367405301,1750786240116,-460.0,0.00017242,2]
[367405303,1750786240125,-602.21,0.00017242,2]
[367405305,1750786240134,-460.0,0.00017242,2]
[367405307,1750786240143,-304.34348981,0.00017242,2]
[367405309,1750786240152,-460.0,0.00017242,2]
[367405311,1750786240161,-460.0,0.00017242,2]
[367405313,1750786240170,-279.12990826,0.00017242,2]
[367405315,1750786240180,-460.0,0.00017242,2]
[367405317,1750786240189,-500.0,0.00017243,2]
[367405319,1750786240199,-460.0,0.00017243,2]
[367405321,1750786240207,-460.0,0.00017243,2]
[367405323,1750786240216,-460.0,0.00017243,2]
[367405325,1750786240225,-460.0,0.00017243,2]
[367405327,1750786240234,-460.0,0.00017243,2]
[367405329,1750786240243,-460.0,0.00017243,2]
[367405331,1750786240252,-460.0,0.00017243,2]
[367405333,1750786240260,-460.0,0.00017243,2]
[367405335,1750786240270,-460.0,0.00017243,2]
[367405337,1750786240279,-460.0,0.00017243,2]
[367405339,1750786240289,-460.0,0.00017243,2]
[367405341,1750786240298,-460.0,0.00017243,2]
[367405343,1750786240307,-500.0,0.00017243,2]
[367405345,1750786240316,-460.0,0.00017243,2]
[367405347,1750786240326,-460.0,0.00017243,2]
[367405348,1750786240335,-460.0,0.00017243,2]
[367405350,1750786240346,-460.0,0.00017243,2]
[367405352,1750786240358,-460.0,0.00017243,2]
[367405354,1750786240367,-460.0,0.00017243,2]
[367405357,1750786240376,-460.0,0.00017243,2]
[367405358,1750786240385,-460.0,0.00017243,2]
[367405360,1750786240394,-460.0,0.00017243,2]
[367405363,1750786240405,-206.9,0.00017243,2]
[367405365,1750786240414,-460.0,0.00017243,2]
[367405367,1750786240424,-460.0,0.00017243,2]
[367405369,1750786240434,-1010.64,0.00017244,2]
[367405371,1750786240445,-549.46,0.00017244,2]
[367405373,1750786240455,-460.0,0.00017244,2]
[367405375,1750786240465,-1567.52,0.00017244,2]
[367405376,1750786240474,-1090.39,0.00017244,2]
[367405379,1750786240483,-460.0,0.00017244,2]
[367405380,1750786240493,-500.0,0.00017249,2]
[367405383,1750786240502,-500.0,0.0001725,2]
[367405384,1750786240512,-500.0,0.0001725,2]
[367405387,1750786240522,-460.0,0.00017251,2]
[367405388,1750786240531,-460.0,0.00017251,2]
[367405391,1750786240540,-460.0,0.00017251,2]
[367405392,1750786240551,-460.0,0.00017251,2]
[367405394,1750786240560,-460.0,0.00017251,2]
[367405396,1750786240568,-508.66445798,0.00017251,2]
[367405398,1750786240578,-460.0,0.00017251,2]
[367405400,1750786240587,-460.0,0.00017251,2]
[367405402,1750786240596,-460.0,0.00017251,2]
[367405404,1750786240606,-460.0,0.00017251,2]
[367405406,1750786240615,-460.0,0.00017251,2]
[367405408,1750786240624,-460.0,0.00017251,2]
[367405410,1750786240633,-460.0,0.00017251,2]
[367405412,1750786240643,-265.89663688,0.00017251,2]
[367405414,1750786240652,-306.40534522,0.00017251,2]
[367405416,1750786240662,-460.0,0.00017251,2]
[367405419,1750786240671,-247.01192323,0.00017251,2]
[367405421,1750786240680,-460.0,0.00017251,2]
[367405423,1750786240689,-460.0,0.00017251,2]
[367405425,1750786240702,-460.0,0.00017251,2]
[367405427,1750786240712,-460.0,0.00017251,2]
[367405429,1750786240721,-485.2,0.00017251,2]
[367405431,1750786240730,-460.0,0.00017251,2]
[367405433,1750786240739,-460.0,0.00017251,2]
[367405435,1750786240748,-783.79,0.00017251,2]
[367405437,1750786240758,-460.0,0.00017251,2]
[367405439,1750786240768,-460.0,0.00017251,2]
[367405441,1750786240777,-460.0,0.00017251,2]
[367405443,1750786240787,-460.0,0.00017251,2]
[367405445,1750786240796,-460.0,0.00017251,2]
[367405447,1750786240805,-298.0922091,0.00017251,2]
[367405449,1750786240815,-460.0,0.00017251,2]
[367405451,1750786240826,-460.0,0.00017251,2]
[367405453,1750786240835,-460.0,0.00017251,2]
[367405455,1750786240844,-460.16308969,0.00017251,2]
[367405457,1750786240853,-1000.0,0.00017251,2]
[367405459,1750786240863,-460.0,0.00017251,2]
[367405461,1750786240872,-460.0,0.00017251,2]
[367405463,1750786240882,-1000.0,0.00017252,2]
[367405465,1750786240891,-500.0,0.00017254,2]
[367405467,1750786240900,-218.15013796,0.00017255,2]
[367405469,1750786240909,-460.0,0.00017255,2]
[367405471,1750786240919,-460.0,0.00017255,2]
[367405473,1750786240928,-460.0,0.00017255,2]
[367405475,1750786240937,-460.0,0.00017255,2]
[367405477,1750786240946,-460.0,0.00017255,2]
[367405479,1750786240955,-500.0,0.00017255,2]
[367405481,1750786240965,-460.0,0.00017255,2]
[367405482,1750786240973,-460.0,0.00017255,2]
[367405485,1750786240983,-490.864577,0.00017255,2]
[367405486,1750786240991,-460.0,0.00017255,2]
[367405488,1750786241001,-343.70778224,0.00017255,2]
[367405490,1750786241010,-460.0,0.00017255,2]
[367405493,1750786241020,-460.0,0.00017255,2]
[367405495,1750786241029,-449.14715772,0.00017255,2]
[367405497,1750786241039,-460.0,0.00017255,2]
[367405498,1750786241047,-460.0,0.00017255,2]
[367405500,1750786241057,-460.0,0.00017255,2]
[367405503,1750786241066,-458.38151557,0.00017255,2]
[367405504,1750786241078,-460.0,0.00017255,2]
[367405506,1750786241087,-205.13825141,0.00017255,2]
[367405509,1750786241097,-460.0,0.00017255,2]
[367405511,1750786241106,-460.0,0.00017255,2]
[367405513,1750786241116,-460.0,0.00017255,2]
[367405515,1750786241125,-460.0,0.00017255,2]
[367405517,1750786241135,-460.0,0.00017255,2]
[367405518,1750786241144,-460.0,0.00017255,2]
[367405521,1750786241154,-460.0,0.00017255,2]
[367405523,1750786241163,-460.0,0.00017255,2]
[367405525,1750786241172,-460.0,0.00017255,2]
[367405527,1750786241181,-460.0,0.00017255,2]
[367405529,1750786241191,-460.0,0.00017255,2]
[367405531,1750786241200,-460.0,0.00017255,2]
[367405533,1750786241210,-460.0,0.00017255,2]
[367405534,1750786241219,-407.9516865,0.00017255,2]
[367405536,1750786241229,-368.38001175,0.00017255,2]
[367405539,1750786241238,-460.0,0.00017255,2]
[367405540,1750786241247,-460.0,0.00017255,2]
[367405542,1750786241256,-460.0,0.00017255,2]
[367405544,1750786241265,-1000.0,0.00017255,2]
[367405546,1750786241275,-500.0,0.00017255,2]
[367405549,1750786241284,-402.4305514,0.00017255,2]
[367405551,1750786241293,-460.0,0.00017255,2]
[367405552,1750786241302,-365.04500709,0.00017255,2]
[367405554,1750786241311,-460.0,0.00017255,2]
[367405556,1750786241320,-460.0,0.00017255,2]
[367405558,1750786241330,-460.0,0.00017255,2]
[367405560,1750786241339,-460.0,0.00017255,2]
[367405562,1750786241350,-460.0,0.00017255,2]
[367405564,1750786241361,-460.0,0.00017255,2]
[367405566,1750786241371,-460.0,0.00017255,2]
[367405568,1750786241380,-460.0,0.00017255,2]
[367405570,1750786241390,-460.0,0.00017255,2]
[367405572,1750786241399,-460.0,0.00017255,2]
[367405574,1750786241408,-460.0,0.00017255,2]
[367405576,1750786241417,-460.0,0.00017255,2]
[367405578,1750786241428,-460.68661472,0.00017255,2]
[367405580,1750786241437,-460.0,0.00017255,2]
[367405582,1750786241446,-400.0,0.00017255,2]
[367405584,1750786241455,-460.0,0.00017255,2]
[367405586,1750786241464,-460.0,0.00017255,2]
[367405588,1750786241473,-434.85778017,0.00017255,2]
[367405590,1750786241483,-460.0,0.00017255,2]
[367405592,1750786241492,-460.0,0.00017255,2]
[367405594,1750786241501,-460.0,0.00017255,2]
[367405596,1750786241511,-460.0,0.00017255,2]
[367405598,1750786241520,-460.0,0.00017255,2]
[367405600,1750786241529,-460.0,0.00017256,2]
[367405602,1750786241538,-460.0,0.00017256,2]
[367405604,1750786241547,-460.0,0.00017256,2]
[367405606,1750786241556,-460.0,0.00017256,2]
[367405608,1750786241566,-460.0,0.00017256,2]
[367405610,1750786241575,-460.0,0.00017256,2]
[367405612,1750786241584,-460.0,0.00017256,2]
[367405614,1750786241593,-460.0,0.00017256,2]
[367405616,1750786241603,-460.0,0.00017256,2]
[367405618,1750786241611,-460.0,0.00017256,2]
[367405620,1750786241621,-460.0,0.00017256,2]
[367405622,1750786241630,-1000.0,0.00017256,2]
[367405624,1750786241639,-1000.0,0.00017256,2]
[367405626,1750786241648,-500.0,0.00017256,2]
[367405628,1750786241658,-460.0,0.00017256,2]
[367405630,1750786241667,-460.0,0.00017256,2]
[367405632,1750786241676,-460.0,0.00017257,2]
[367405634,1750786241686,-460.0,0.00017257,2]
[367405636,1750786241695,-460.0,0.00017257,2]
[367405638,1750786241705,-460.0,0.00017257,2]
[367405640,1750786241715,-460.0,0.00017257,2]
[367405642,1750786241724,-460.0,0.00017257,2]
[367405644,1750786241733,-1000.0,0.00017257,2]
[367405646,1750786241742,-1000.0,0.00017257,2]
[367405648,1750786241751,-1750.456,0.00017283,2]
[367405650,1750786241760,-242.0,0.00017322,2]
[367405652,1750786241769,-674.56203062,0.00017338,2]
[367405654,1750786241781,-893.89943799,0.00017411,2]
[367405656,1750786241790,-151.0,0.000175,2]
[367405658,1750786241800,-460.0,0.00017507,2]
[367405660,1750786241809,-1952.24,0.00017508,2]
[367405662,1750786241819,-460.0,0.00017508,2]
[367405664,1750786241828,-1895.54,0.0001751,2]
[367405666,1750786241837,-1548.47,0.0001751,2]
[367405668,1750786241846,-580.83,0.0001751,2]
[367405670,1750786241855,-460.0,0.0001751,2]
[367405672,1750786241864,-1049.86,0.0001751,2]
[367405674,1750786241873,-1145.46,0.0001751,2]
[367405676,1750786241882,-1771.62,0.0001751,2]
[367405678,1750786241892,-460.0,0.0001751,2]
[367405680,1750786241901,-819.54,0.0001751,2]
[367405682,1750786241910,-520.75,0.0001751,2]
[367405684,1750786241919,-460.0,0.0001751,2]
[367405685,1750786241928,-460.0,0.0001751,2]
[367405686,1750786241937,-460.0,0.0001751,2]
[367405687,1750786241947,-1685.97,0.0001751,2]
[367405688,1750786241956,-548.27,0.0001751,2]
[367405689,1750786241966,-460.0,0.00017511,2]
[367405690,1750786241974,-460.0,0.00017511,2]
[367405691,1750786241983,-460.0,0.00017511,2]
[367405692,1750786241992,-460.0,0.00017511,2]
[367405693,1750786242002,-815.69,0.00017511,2]
[367405694,1750786242011,-460.0,0.00017511,2]
[367405695,1750786242020,-626.28,0.00017511,2]
[367405696,1750786242030,-460.0,0.00017511,2]
[367405697,1750786242039,-460.0,0.00017511,2]
[367405698,1750786242048,-460.0,0.00017511,2]
[367405699,1750786242058,-460.0,0.00017512,2]
[367405700,1750786242067,-460.0,0.00017512,2]
[367405701,1750786242076,-460.0,0.00017512,2]
[367405702,1750786242086,-460.0,0.00017512,2]
[367405703,1750786242096,-460.0,0.00017512,2]
[367405704,1750786242105,-460.0,0.00017513,2]
[367405705,1750786242115,-500.0,0.00017513,2]
[367405707,1750786242124,-460.0,0.00017514,2]
[367405708,1750786242133,-1249.53,0.00017514,2]
[367405710,1750786242142,-460.0,0.00017514,2]
[367405712,1750786242151,-460.0,0.00017514,2]
[367405713,1750786242160,-613.36,0.00017514,2]
[367405716,1750786242169,-460.0,0.00017514,2]
[367405717,1750786242179,-460.0,0.00017514,2]
[367405720,1750786242188,-3176.47,0.00017514,2]
[367405722,1750786242197,-592.5,0.00017514,2]
[367405724,1750786242206,-539.52,0.00017514,2]
[367405726,1750786242215,-460.0,0.00017514,2]
[367405728,1750786242225,-713.14,0.00017514,2]
[367405730,1750786242234,-491.53,0.00017514,2]
[367405732,1750786242243,-460.0,0.00017515,2]
[367405734,1750786242252,-460.0,0.00017515,2]
[367405750,1750786242402,-1449.9,0.00017515,2]
[367405752,1750786242412,-560.57,0.00017515,2]
[367405754,1750786242422,-460.0,0.00017515,2]
[367405756,1750786242431,-1337.73,0.00017515,2]
[367405758,1750786242440,-744.52,0.00017515,2]
[367405760,1750786242449,-460.0,0.00017515,2]
[367405762,1750786242458,-460.0,0.00017515,2]
[367405764,1750786242467,-460.0,0.00017516,2]
[367405766,1750786242477,-460.0,0.00017516,2]
[367405768,1750786242487,-460.0,0.00017516,2]
[367405770,1750786242496,-460.0,0.00017516,2]
[367405772,1750786242505,-460.0,0.00017517,2]
[367405774,1750786242515,-460.0,0.00017517,2]
[367405776,1750786242524,-460.0,0.00017517,2]
[367405778,1750786242533,-460.0,0.00017517,2]
[367405780,1750786242542,-460.0,0.00017517,2]
[367405782,1750786242552,-477.7,0.00017517,2]
[367405784,1750786242561,-460.0,0.00017517,2]
[367405786,1750786242570,-460.0,0.00017517,2]
[367405788,1750786242584,-500.0,0.00017517,2]
[367405790,1750786242593,-460.0,0.00017517,2]
[367405792,1750786242602,-563.78,0.00017517,2]
[367405794,1750786242612,-500.0,0.00017517,2]
[367405796,1750786242621,-460.0,0.00017517,2]
[367405798,1750786242631,-460.0,0.00017517,2]
[367405800,1750786242641,-503.04888312,0.00017517,2]
[367405802,1750786242650,-460.0,0.00017517,2]
[367405804,1750786242659,-460.0,0.00017517,2]
[367405806,1750786242668,-287.0,0.00017517,2]
[367405808,1750786242677,-1010.64,0.00017518,2]
[367405810,1750786242687,-549.46,0.00017518,2]
[367405812,1750786242696,-460.0,0.00017518,2]
[367405814,1750786242706,-1567.52,0.00017518,2]
[367405816,1750786242714,-1090.39,0.00017518,2]
[367405818,1750786242723,-460.0,0.00017518,2]
[367405820,1750786242732,-460.0,0.00017525,2]
[367405822,1750786242741,-334.76399377,0.00017525,2]
[367405824,1750786242750,-348.40770727,0.00017525,2]
[367405826,1750786242759,-430.0,0.00017525,2]
[367405828,1750786242772,-460.0,0.00017525,2]
[367405830,1750786242781,-783.79,0.00017525,2]
[367405832,1750786242790,-524.96,0.00017525,2]
[367405834,1750786242800,-460.0,0.00017525,2]
[367405836,1750786242809,-460.0,0.00017525,2]
[367405838,1750786242819,-460.0,0.00017525,2]
[367405840,1750786242829,-460.0,0.00017525,2]
[367405842,1750786242838,-1000.0,0.00017528,2]
[367405844,1750786242847,-500.0,0.00017528,2]
[367405846,1750786242856,-460.0,0.00017529,2]
[367405848,1750786242866,-436.23728154,0.00017529,2]
[367405850,1750786242875,-460.0,0.00017529,2]
[367405852,1750786242884,-460.0,0.00017529,2]
[367405854,1750786242894,-460.0,0.00017529,2]
[367405856,1750786242903,-460.0,0.00017529,2]
[367405858,1750786242912,-460.0,0.00017529,2]
[367405860,1750786242926,-578.45405921,0.00017529,2]
[367405862,1750786242935,-460.0,0.00017529,2]
[367405864,1750786242946,-343.6844825,0.00017529,2]
[367405866,1750786242955,-460.0,0.00017529,2]
[367405868,1750786242964,-180.83188744,0.00017529,2]
[367405870,1750786242974,-460.0,0.00017529,2]
[367405872,1750786242983,-460.0,0.00017529,2]
[367405874,1750786242992,-460.0,0.00017529,2]
[367405876,1750786243001,-460.0,0.00017529,2]
[367405878,1750786243009,-1000.0,0.00017529,2]
[367405880,1750786243018,-460.0,0.00017529,2]
[367405882,1750786243028,-460.0,0.00017529,2]
[367405884,1750786243037,-460.0,0.00017529,2]
[367405886,1750786243047,-313.91577373,0.00017529,2]
[367405889,1750786243059,-460.0,0.00017529,2]
[367405891,1750786243068,-460.0,0.00017529,2]
[367405893,1750786243078,-406.01335669,0.00017529,2]
[367405895,1750786243088,-460.0,0.00017529,2]
[367405897,1750786243097,-460.0,0.00017529,2]
[367405899,1750786243106,-460.0,0.00017529,2]
[367405901,1750786243116,-460.0,0.00017529,2]
[367405903,1750786243125,-460.0,0.00017529,2]
[367405905,1750786243134,-460.0,0.00017529,2]
[367405907,1750786243143,-512.54,0.0001753,2]
[367405909,1750786243152,-460.0,0.0001753,2]
[367405911,1750786243161,-460.0,0.0001753,2]
[367405913,1750786243171,-460.0,0.0001753,2]
[367405915,1750786243180,-460.0,0.0001753,2]
[367405917,1750786243190,-355.09252738,0.00017531,2]
[367405919,1750786243199,-460.0,0.00017531,2]
[367405921,1750786243208,-460.0,0.00017531,2]
[367405923,1750786243218,-675.43240816,0.00017531,2]
[367405925,1750786243227,-242.0,0.00017603,2]
[367405927,1750786243235,-286.0,0.00017603,5]
[367405929,1750786243244,-17565.22070248,0.00017671,2]
[367405931,1750786243253,-371.0,0.00017724,2]
[367405933,1750786243262,-153.34192971,0.00017735,2]
[367405935,1750786243271,-160.0,0.00017736,2]
[367405936,1750786243280,-160.0,0.00017736,2]
[367405939,1750786243289,-425.14181427,0.00017736,2]
[367405941,1750786243299,-846.68469334,0.00017736,2]
[367405942,1750786243308,-213.66798275,0.00017736,2]
[367405944,1750786243317,-160.0,0.00017736,2]
[367405946,1750786243329,-160.0,0.00017736,2]
[367405948,1750786243338,-230.20892031,0.00017736,2]
[367405950,1750786243352,-524.15841286,0.00017736,2]
[367405953,1750786243362,-160.0,0.00017736,2]
[367405954,1750786243371,-12556.00642039,0.00017736,2]
[367405957,1750786243380,-160.0,0.00017736,2]
[367405959,1750786243391,-160.0,0.00017736,2]
[367405960,1750786243400,-160.0,0.00017736,2]
[367405963,1750786243409,-836.80226758,0.00017736,2]
[367405965,1750786243418,-500.0,0.00017751,2]
[367405967,1750786243429,-151.373561,0.00017752,2]
[367405969,1750786243439,-151.0,0.00017752,2]
[367405970,1750786243448,-151.0,0.00017752,2]
[367405973,1750786243458,-151.0,0.00017752,2]
[367405974,1750786243467,-151.0,0.00017752,2]
[367405977,1750786243476,-151.0,0.00017752,2]
[367405979,1750786243485,-300.28477608,0.00017752,2]
[367405980,1750786243493,-247.54375071,0.00017752,2]
[367405982,1750786243501,-151.0,0.00017752,2]
[367405984,1750786243509,-151.0,0.00017752,2]
[367405986,1750786243518,-153.85052368,0.00017752,2]
[367405988,1750786243527,-151.0,0.00017752,2]
[367405990,1750786243537,-151.0,0.00017752,2]
[367405992,1750786243546,-151.0,0.00017752,2]
[367405995,1750786243557,-151.0,0.00017752,2]
[367405997,1750786243566,-151.0,0.00017752,2]
[367405998,1750786243577,-151.0,0.00017752,2]
[367406000,1750786243587,-151.0,0.00017752,2]
[367406003,1750786243596,-500.0,0.00017752,2]
[367406005,1750786243605,-155.97576151,0.00017752,2]
[367406006,1750786243615,-155.48646027,0.00017752,2]
[367406008,1750786243624,-151.0,0.00017752,2]
[367406010,1750786243632,-155.71614556,0.00017752,2]
[367406012,1750786243642,-151.0,0.00017752,2]
[367406014,1750786243651,-151.0,0.00017752,2]
[367406016,1750786243660,-152.31220632,0.00017752,2]
[367406018,1750786243669,-500.0,0.00017752,2]
[367406020,1750786243677,-151.0,0.00017752,2]
[367406022,1750786243686,-151.0,0.00017779,2]
[367406024,1750786243699,-152.8316239,0.00017779,2]
[367406027,1750786243708,-151.0,0.00017779,2]
[367406029,1750786243718,-151.0,0.00017779,2]
[367406030,1750786243727,-151.0,0.00017779,2]
[367406032,1750786243737,-151.0,0.00017779,2]
[367406034,1750786243746,-151.3361149,0.00017779,2]
[367406036,1750786243755,-151.0,0.00017779,2]
[367406038,1750786243765,-151.0,0.00017779,2]
[367406040,1750786243774,-500.0,0.00017779,2]
[367406042,1750786243784,-151.0,0.00017779,2]
[367406044,1750786243794,-151.0,0.00017779,2]
[367406047,1750786243803,-151.71855745,0.00017779,2]
[367406049,1750786243814,-500.0,0.00017779,2]
[367406050,1750786243823,-151.0,0.00017779,2]
[367406052,1750786243833,-460.0,0.00017781,2]
[367406054,1750786243842,-1952.24,0.00017782,2]
[367406056,1750786243852,-460.0,0.00017782,2]
[367406059,1750786243861,-1895.54,0.00017784,2]
[367406060,1750786243870,-1548.47,0.00017784,2]
[367406063,1750786243879,-580.83,0.00017784,2]
[367406065,1750786243890,-460.0,0.00017784,2]
[367406066,1750786243900,-1049.86,0.00017784,2]
[367406069,1750786243912,-1145.46,0.00017784,2]
[367406071,1750786243924,-1771.62,0.00017784,2]
[367406073,1750786243938,-460.0,0.00017784,2]
[367406076,1750786243950,-819.54,0.00017784,2]
[367406078,1750786243964,-520.75,0.00017784,2]
[367406080,1750786243974,-460.0,0.00017784,2]
[367406083,1750786243984,-460.0,0.00017784,2]
[367406085,1750786243996,-460.0,0.00017784,2]
[367406087,1750786244008,-1685.97,0.00017784,2]
[367406090,1750786244021,-548.27,0.00017784,2]
[367406092,1750786244033,-460.0,0.00017785,2]
[367406094,1750786244045,-460.0,0.00017785,2]